[Event "MČR v rapid šachu družstev 2019"]
[Site "Teplice, Czech Republic"]
[Date "2019.09.15"]
[Round "4.22"]
[White "Lorenc, Tomas"]
[Black "Vltavsky, Vladimir"]
[Result "1/2-1/2"]
[TimeControl "15 min. + 5s"]
[WhiteElo "2118"]
[BlackElo "2146"]

1. c4 {[%clk 00:15:07]} {[%emt 00:00:02]} Nf6 {[%clk 00:15:09]} {[%emt
00:00:02]} 2. g3 {[%clk 00:15:11]} {[%emt 00:00:02]} c5 {[%clk 00:15:09]}
{[%emt 00:00:04]} 3. Bg2 {[%clk 00:15:15]} {[%emt 00:00:01]} Nc6 {[%clk
00:15:13]} {[%emt 00:00:02]} 4. Nf3 {[%clk 00:15:18]} {[%emt 00:00:01]} e5
{[%clk 00:15:12]} {[%emt 00:00:06]} 5. O-O {[%clk 00:15:11]} {[%emt 00:00:12]}
g6 {[%clk 00:15:07]} {[%emt 00:00:10]} 6. Nc3 {[%clk 00:15:02]} {[%emt
00:00:14]} Bg7 {[%clk 00:15:06]} {[%emt 00:00:06]} 7. d3 {[%clk 00:15:05]}
{[%emt 00:00:02]} O-O {[%clk 00:15:05]} {[%emt 00:00:06]} 8. a3 {[%clk
00:15:06]} {[%emt 00:00:04]} d6 {[%clk 00:14:19]} {[%emt 00:00:51]} 9. Rb1
{[%clk 00:15:00]} {[%emt 00:00:11]} a5 {[%clk 00:14:12]} {[%emt 00:00:11]} 10.
Ne1 {[%clk 00:14:56]} {[%emt 00:00:10]} Ne8 {[%clk 00:13:29]} {[%emt 00:00:48]}
11. Nc2 {[%clk 00:14:54]} {[%emt 00:00:07]} f5 {[%clk 00:13:16]} {[%emt
00:00:18]} 12. b4 {[%clk 00:14:49]} {[%emt 00:00:10]} axb4 {[%clk 00:13:14]}
{[%emt 00:00:07]} 13. axb4 {[%clk 00:14:53]} {[%emt 00:00:01]} h6 {[%clk
00:10:47]} {[%emt 00:02:32]} 14. Nd5 {[%clk 00:14:46]} {[%emt 00:00:11]} Kh7
{[%clk 00:10:32]} {[%emt 00:00:21]} 15. bxc5 {[%clk 00:14:30]} {[%emt
00:00:21]} dxc5 {[%clk 00:10:36]} {[%emt 00:00:01]} 16. Be3 {[%clk 00:14:07]}
{[%emt 00:00:28]} Nd4 {[%clk 00:10:16]} {[%emt 00:00:25]} 17. Bxd4 {[%clk
00:12:19]} {[%emt 00:01:53]} exd4 {[%clk 00:09:58]} {[%emt 00:00:23]} 18. Rb5
{[%clk 00:12:07]} {[%emt 00:00:17]} Ra5 {[%clk 00:09:29]} {[%emt 00:00:33]} 19.
Qb1 {[%clk 00:11:21]} {[%emt 00:00:52]} Nd6 {[%clk 00:09:29]} {[%emt 00:00:05]}
20. Rxa5 {[%clk 00:10:27]} {[%emt 00:00:58]} Qxa5 {[%clk 00:09:33]} {[%emt
00:00:02]} 21. Qb6 {[%clk 00:09:52]} {[%emt 00:00:40]} Qxb6 {[%clk 00:09:01]}
{[%emt 00:00:38]} 22. Nxb6 {[%clk 00:09:55]} {[%emt 00:00:01]} Be6 {[%clk
00:08:51]} {[%emt 00:00:15]} 23. Ra1 {[%clk 00:09:39]} {[%emt 00:00:20]} Rf7
{[%clk 00:08:28]} {[%emt 00:00:29]} 24. Ra7 {[%clk 00:09:11]} {[%emt 00:00:33]}
Bf6 {[%clk 00:07:35]} {[%emt 00:00:58]} 25. Na4 {[%clk 00:07:38]} {[%emt
00:01:38]} Rc7 {[%clk 00:07:20]} {[%emt 00:00:19]} 26. Na3 {[%clk 00:07:20]}
{[%emt 00:00:23]} Bd7 {[%clk 00:06:26]} {[%emt 00:01:00]} 27. Nb6 {[%clk
00:06:36]} {[%emt 00:00:49]} Nc8 {[%clk 00:06:05]} {[%emt 00:00:25]} 28. Nxd7
{[%clk 00:06:17]} {[%emt 00:00:25]} Rxd7 {[%clk 00:05:29]} {[%emt 00:00:42]} 29.
Rxb7 {[%clk 00:06:16]} {[%emt 00:00:06]} Rxb7 {[%clk 00:05:27]} {[%emt
00:00:06]} 30. Bxb7 {[%clk 00:06:19]} {[%emt 00:00:01]} Nb6 {[%clk 00:05:19]}
{[%emt 00:00:13]} 31. Nb5 {[%clk 00:05:47]} {[%emt 00:00:38]} Kg7 {[%clk
00:05:12]} {[%emt 00:00:12]} 32. Nc7 {[%clk 00:05:37]} {[%emt 00:00:15]} Kf7
{[%clk 00:05:04]} {[%emt 00:00:12]} 33. h4 {[%clk 00:03:57]} {[%emt 00:01:45]}
Ke7 {[%clk 00:04:54]} {[%emt 00:00:16]} 34. Kg2 {[%clk 00:03:19]} {[%emt
00:00:43]} Kd7 {[%clk 00:04:55]} {[%emt 00:00:04]} 35. Nd5 {[%clk 00:03:10]}
{[%emt 00:00:13]} Nxd5 {[%clk 00:04:54]} {[%emt 00:00:06]} 36. Bxd5 {[%clk
00:03:14]} {[%emt 00:00:02]} g5 {[%clk 00:04:51]} {[%emt 00:00:09]} 37. hxg5
{[%clk 00:03:07]} {[%emt 00:00:11]} hxg5 {[%clk 00:04:53]} {[%emt 00:00:02]} 38.
g4 {[%clk 00:03:06]} {[%emt 00:00:06]} f4 {[%clk 00:04:51]} {[%emt 00:00:08]}
39. Kf3 {[%clk 00:03:07]} {[%emt 00:00:04]} Kd6 {[%clk 00:04:39]} {[%emt
00:00:17]} 40. Ke4 {[%clk 00:03:11]} {[%emt 00:00:01]} Be7 {[%clk 00:04:42]}
{[%emt 00:00:03]} 41. Kf5 {[%clk 00:02:43]} {[%emt 00:00:32]} Bd8 {[%clk
00:04:45]} {[%emt 00:00:01]} 42. Kg6 {[%clk 00:02:47]} {[%emt 00:00:02]} Be7
{[%clk 00:04:47]} {[%emt 00:00:03]} 43. Kf7 {[%clk 00:02:45]} {[%emt 00:00:06]}
Bd8 {[%clk 00:04:51]} {[%emt 00:00:01]} 44. Ke8 {[%clk 00:02:21]} {[%emt
00:00:29]} Bf6 {[%clk 00:04:52]} {[%emt 00:00:05]} 45. Kf7 {[%clk 00:02:13]}
{[%emt 00:00:13]} 1/2-1/2

[Event "MČR v rapid šachu družstev 2019"]
[Site "Teplice, Czech Republic"]
[Date "2019.09.15"]
[Round "4.23"]
[White "Marsalek, Zdenek"]
[Black "Srba, Stanislav"]
[Result "1-0"]
[TimeControl "15 min. + 5s"]
[WhiteElo "2278"]
[BlackElo "1835"]

1. d4 {[%clk 00:15:09]} f5 {[%clk 00:15:10]} {[%emt 00:00:01]} 2. g3 {[%clk
00:15:11]} {[%emt 00:00:03]} Nf6 {[%clk 00:15:13]} {[%emt 00:00:02]} 3. Bg2
{[%clk 00:15:13]} {[%emt 00:00:02]} g6 {[%clk 00:15:17]} {[%emt 00:00:02]} 4.
c3 {[%clk 00:15:14]} {[%emt 00:00:04]} Bg7 {[%clk 00:15:20]} {[%emt 00:00:02]}
5. Nf3 {[%clk 00:15:10]} {[%emt 00:00:09]} O-O {[%clk 00:14:58]} {[%emt
00:00:27]} 6. O-O {[%clk 00:15:11]} {[%emt 00:00:03]} c6 {[%clk 00:14:41]}
{[%emt 00:00:23]} 7. Nbd2 {[%clk 00:15:04]} {[%emt 00:00:12]} Na6 {[%clk
00:14:20]} {[%emt 00:00:26]} 8. a4 {[%clk 00:15:02]} {[%emt 00:00:07]} d6
{[%clk 00:13:35]} {[%emt 00:00:50]} 9. Qb3+ {[%clk 00:15:01]} {[%emt 00:00:06]}
e6 {[%clk 00:12:48]} {[%emt 00:00:52]} 10. Ng5 {[%clk 00:14:30]} {[%emt
00:00:35]} Qe7 {[%clk 00:12:17]} {[%emt 00:00:36]} 11. e4 {[%clk 00:14:22]}
{[%emt 00:00:13]} h6 {[%clk 00:11:06]} {[%emt 00:01:17]} 12. Nh3 {[%clk
00:14:26]} {[%emt 00:00:01]} fxe4 {[%clk 00:10:28]} {[%emt 00:00:43]} 13. Nxe4
{[%clk 00:14:28]} {[%emt 00:00:02]} d5 {[%clk 00:08:30]} {[%emt 00:02:04]} 14.
Nxf6+ {[%clk 00:13:39]} {[%emt 00:00:54]} Qxf6 {[%clk 00:06:58]} {[%emt
00:01:37]} 15. Bf4 {[%clk 00:13:25]} {[%emt 00:00:19]} g5 {[%clk 00:06:39]}
{[%emt 00:00:23]} 16. Be5 {[%clk 00:13:18]} {[%emt 00:00:12]} Qg6 {[%clk
00:06:43]} 17. Rae1 {[%clk 00:13:11]} {[%emt 00:00:13]} Rf5 {[%clk 00:06:16]}
{[%emt 00:00:32]} 18. Bxg7 {[%clk 00:13:04]} {[%emt 00:00:12]} Kxg7 {[%clk
00:06:07]} {[%emt 00:00:15]} 19. f4 {[%clk 00:13:06]} {[%emt 00:00:03]} b6
{[%clk 00:05:20]} {[%emt 00:00:52]} 20. Re3 {[%clk 00:12:36]} {[%emt 00:00:35]}
Bd7 {[%clk 00:04:59]} {[%emt 00:00:26]} 21. Qd1 {[%clk 00:11:51]} {[%emt
00:00:49]} Nc7 {[%clk 00:04:25]} {[%emt 00:00:40]} 22. Qe2 {[%clk 00:11:51]}
{[%emt 00:00:05]} Raf8 {[%clk 00:03:56]} {[%emt 00:00:33]} 23. Re5 {[%clk
00:11:47]} {[%emt 00:00:09]} Ne8 {[%clk 00:03:19]} {[%emt 00:00:43]} 24. Kh1
{[%clk 00:10:17]} {[%emt 00:01:35]} Nd6 {[%clk 00:02:31]} {[%emt 00:00:53]} 25.
b3 {[%clk 00:09:57]} {[%emt 00:00:25]} g4 {[%clk 00:01:26]} {[%emt 00:01:09]}
26. Nf2 {[%clk 00:09:48]} {[%emt 00:00:14]} h5 {[%clk 00:01:15]} {[%emt
00:00:17]} 27. c4 {[%clk 00:09:46]} {[%emt 00:00:07]} Nf7 {[%clk 00:00:36]}
{[%emt 00:00:43]} 28. Re3 {[%clk 00:09:49]} {[%emt 00:00:02]} h4 {[%clk
00:00:30]} {[%emt 00:00:12]} 29. Qxg4 {[%clk 00:09:44]} {[%emt 00:00:09]} Qxg4
{[%clk 00:00:16]} {[%emt 00:00:19]} 30. Nxg4 {[%clk 00:09:47]} {[%emt
00:00:02]} Rh8 {[%clk 00:00:17]} {[%emt 00:00:05]} 31. Kg1 {[%clk 00:09:48]}
{[%emt 00:00:04]} Rfh5 {[%clk 00:00:14]} {[%emt 00:00:08]} 32. Bf3 {[%clk
00:09:24]} {[%emt 00:00:29]} R5h7 {[%clk 00:00:11]} {[%emt 00:00:08]} 33. Rfe1
{[%clk 00:09:20]} {[%emt 00:00:09]} hxg3 {[%clk 00:00:13]} {[%emt 00:00:03]} 34.
hxg3 {[%clk 00:09:23]} {[%emt 00:00:01]} Rh3 {[%clk 00:00:17]} {[%emt
00:00:02]} 35. Bg2 {[%clk 00:09:25]} {[%emt 00:00:03]} R3h7 {[%clk 00:00:20]}
{[%emt 00:00:02]} 36. Ne5 {[%clk 00:09:25]} {[%emt 00:00:04]} Nxe5 {[%clk
00:00:22]} {[%emt 00:00:04]} 37. Rxe5 {[%clk 00:09:27]} {[%emt 00:00:02]} Kf6
{[%clk 00:00:23]} {[%emt 00:00:05]} 38. Kf2 {[%clk 00:09:22]} {[%emt 00:00:09]}
Rg8 {[%clk 00:00:26]} {[%emt 00:00:03]} 39. Rh1 {[%clk 00:09:20]} {[%emt
00:00:07]} Rxh1 {[%clk 00:00:15]} {[%emt 00:00:16]} 40. Bxh1 {[%clk 00:09:23]}
Be8 {[%clk 00:00:12]} {[%emt 00:00:09]} 41. Bg2 {[%clk 00:08:44]} {[%emt
00:00:44]} Bg6 {[%clk 00:00:14]} {[%emt 00:00:02]} 42. Bh3 {[%clk 00:08:46]}
{[%emt 00:00:03]} Re8 {[%clk 00:00:16]} {[%emt 00:00:04]} 43. cxd5 {[%clk
00:08:36]} {[%emt 00:00:14]} cxd5 {[%clk 00:00:11]} {[%emt 00:00:10]} 44. b4
{[%clk 00:08:29]} {[%emt 00:00:12]} Bc2 {[%clk 00:00:12]} {[%emt 00:00:06]} 45.
a5 {[%clk 00:08:29]} {[%emt 00:00:04]} Ba4 {[%clk 00:00:12]} {[%emt 00:00:05]}
46. f5 {[%clk 00:08:31]} {[%emt 00:00:03]} exf5 {[%clk 00:00:12]} {[%emt
00:00:05]} 47. Rxf5+ {[%clk 00:08:29]} {[%emt 00:00:07]} Ke6 {[%clk 00:00:06]}
{[%emt 00:00:12]} 48. Rh5+ {[%clk 00:08:05]} {[%emt 00:00:28]} Kd6 {[%clk
00:00:07]} {[%emt 00:00:04]} 49. Rh6+ {[%clk 00:08:07]} {[%emt 00:00:03]} Ke7
{[%clk 00:00:08]} {[%emt 00:00:04]} 50. Rh7+ {[%clk 00:08:06]} {[%emt
00:00:05]} Kd6 {[%clk 00:00:09]} {[%emt 00:00:02]} 51. Rxa7 {[%clk 00:08:08]}
{[%emt 00:00:06]} Rf8+ {[%clk 00:00:09]} {[%emt 00:00:04]} 52. Kg1 {[%clk
00:07:56]} {[%emt 00:00:17]} bxa5 {[%clk 00:00:07]} {[%emt 00:00:08]} 53. bxa5
{[%clk 00:07:55]} {[%emt 00:00:07]} Bb5 {[%clk 00:00:11]} 54. Rb7 {[%emt
00:00:10]} 1-0

[Event "MČR v rapid šachu družstev 2019"]
[Site "Teplice, Czech Republic"]
[Date "2019.09.15"]
[Round "4.25"]
[White "Novotny, Michal"]
[Black "Formanek, Martin"]
[Result "1-0"]
[TimeControl "15 min. + 5s"]
[WhiteElo "2311"]
[BlackElo "2185"]

1. d4 {[%clk 00:15:07]} {[%emt 00:00:02]} Nf6 {[%clk 00:15:09]} {[%emt
00:00:03]} 2. Nf3 {[%clk 00:15:11]} g6 {[%clk 00:15:12]} {[%emt 00:00:03]} 3.
Nc3 {[%clk 00:15:14]} d5 {[%clk 00:15:11]} {[%emt 00:00:05]} 4. Bf4 {[%clk
00:15:18]} {[%emt 00:00:02]} Bg7 {[%clk 00:15:12]} {[%emt 00:00:04]} 5. e3
{[%clk 00:15:21]} {[%emt 00:00:01]} O-O {[%clk 00:15:09]} {[%emt 00:00:09]} 6.
Be2 {[%clk 00:15:22]} {[%emt 00:00:04]} c5 {[%clk 00:14:09]} {[%emt 00:01:05]}
7. Ne5 {[%clk 00:15:25]} {[%emt 00:00:02]} Nc6 {[%clk 00:13:18]} {[%emt
00:00:56]} 8. O-O {[%clk 00:15:27]} {[%emt 00:00:02]} cxd4 {[%clk 00:13:12]}
{[%emt 00:00:12]} 9. exd4 {[%clk 00:15:30]} {[%emt 00:00:02]} Bf5 {[%clk
00:12:54]} {[%emt 00:00:23]} 10. Nxc6 {[%clk 00:15:33]} {[%emt 00:00:02]} bxc6
{[%clk 00:12:57]} {[%emt 00:00:02]} 11. Na4 {[%clk 00:15:27]} {[%emt 00:00:10]}
Nd7 {[%clk 00:12:39]} {[%emt 00:00:24]} 12. c3 {[%clk 00:14:49]} {[%emt
00:00:42]} e5 {[%clk 00:12:23]} {[%emt 00:00:22]} 13. Be3 {[%clk 00:14:49]}
{[%emt 00:00:04]} Re8 {[%clk 00:12:22]} {[%emt 00:00:07]} 14. Re1 {[%clk
00:14:49]} {[%emt 00:00:05]} Qf6 {[%clk 00:11:47]} {[%emt 00:00:39]} 15. Qd2
{[%clk 00:14:29]} {[%emt 00:00:26]} e4 {[%clk 00:11:01]} {[%emt 00:00:51]} 16.
b4 {[%clk 00:14:26]} {[%emt 00:00:08]} a6 {[%clk 00:10:38]} {[%emt 00:00:29]}
17. Nc5 {[%clk 00:14:09]} {[%emt 00:00:22]} Nxc5 {[%clk 00:10:36]} {[%emt
00:00:07]} 18. bxc5 {[%clk 00:14:12]} {[%emt 00:00:01]} Ra7 {[%clk 00:08:22]}
{[%emt 00:02:19]} 19. Rab1 {[%clk 00:14:14]} {[%emt 00:00:03]} a5 {[%clk
00:06:18]} {[%emt 00:02:09]} 20. Rb6 {[%clk 00:14:15]} {[%emt 00:00:04]} Bd7
{[%clk 00:05:52]} {[%emt 00:00:31]} 21. Reb1 {[%clk 00:14:05]} {[%emt
00:00:15]} h5 {[%clk 00:05:52]} {[%emt 00:00:05]} 22. Rb7 {[%clk 00:13:48]}
{[%emt 00:00:22]} Rea8 {[%clk 00:05:51]} {[%emt 00:00:07]} 23. Bg5 {[%clk
00:11:47]} {[%emt 00:02:05]} Qf5 {[%clk 00:05:36]} {[%emt 00:00:21]} 24. Qf4
{[%clk 00:10:55]} {[%emt 00:00:56]} Qxf4 {[%clk 00:03:46]} {[%emt 00:01:55]} 25.
Bxf4 {[%clk 00:10:57]} {[%emt 00:00:02]} Kf8 {[%clk 00:03:47]} {[%emt
00:00:05]} 26. Bd6+ {[%clk 00:10:51]} {[%emt 00:00:10]} Ke8 {[%clk 00:03:51]}
{[%emt 00:00:02]} 27. Rxa7 {[%clk 00:10:53]} {[%emt 00:00:03]} 1-0

[Event "MČR v rapid šachu družstev 2019"]
[Site "Teplice, Czech Republic"]
[Date "2019.09.15"]
[Round "4.26"]
[White "Kopta, Pavel"]
[Black "Rolinek, Dominik"]
[Result "1-0"]
[TimeControl "15 min. + 5s"]
[WhiteElo "2200"]
[BlackElo "1999"]

1. d4 {[%clk 00:15:08]} d5 {[%clk 00:15:09]} 2. c4 {[%clk 00:15:11]} {[%emt
00:00:03]} e6 {[%clk 00:15:13]} {[%emt 00:00:01]} 3. Nc3 {[%clk 00:15:15]} Nf6
{[%clk 00:15:17]} {[%emt 00:00:01]} 4. Bg5 {[%clk 00:15:18]} {[%emt 00:00:02]}
c6 {[%clk 00:15:17]} {[%emt 00:00:05]} 5. e3 {[%clk 00:15:21]} {[%emt
00:00:02]} Nbd7 {[%clk 00:15:07]} {[%emt 00:00:15]} 6. cxd5 {[%clk 00:15:24]}
{[%emt 00:00:02]} exd5 {[%clk 00:15:09]} {[%emt 00:00:02]} 7. Bd3 {[%clk
00:15:27]} {[%emt 00:00:02]} Be7 {[%clk 00:15:10]} {[%emt 00:00:05]} 8. Nge2
{[%clk 00:15:30]} {[%emt 00:00:02]} O-O {[%clk 00:15:12]} {[%emt 00:00:03]} 9.
Qc2 {[%clk 00:15:31]} {[%emt 00:00:04]} Re8 {[%clk 00:15:10]} {[%emt 00:00:06]}
10. O-O {[%clk 00:15:26]} {[%emt 00:00:11]} Nf8 {[%clk 00:15:10]} {[%emt
00:00:04]} 11. a3 {[%clk 00:14:56]} {[%emt 00:00:36]} Ng6 {[%clk 00:15:04]}
{[%emt 00:00:10]} 12. Ng3 {[%clk 00:14:29]} {[%emt 00:00:33]} Ng4 {[%clk
00:13:12]} {[%emt 00:01:56]} 13. Bxe7 {[%clk 00:14:24]} {[%emt 00:00:10]} Qxe7
{[%clk 00:13:15]} {[%emt 00:00:03]} 14. h3 {[%clk 00:13:55]} {[%emt 00:00:34]}
Nf6 {[%clk 00:12:01]} {[%emt 00:01:19]} 15. b4 {[%clk 00:13:18]} {[%emt
00:00:41]} Be6 {[%clk 00:11:26]} {[%emt 00:00:40]} 16. Na4 {[%clk 00:13:04]}
{[%emt 00:00:19]} Bc8 {[%clk 00:07:58]} {[%emt 00:03:34]} 17. Rfc1 {[%clk
00:12:19]} {[%emt 00:00:50]} Ne4 {[%clk 00:07:58]} {[%emt 00:00:05]} 18. Bxe4
{[%clk 00:11:30]} {[%emt 00:00:54]} dxe4 {[%clk 00:08:02]} {[%emt 00:00:01]} 19.
Qc5 {[%clk 00:11:03]} {[%emt 00:00:32]} f5 {[%clk 00:05:09]} {[%emt 00:02:56]}
20. Qxe7 {[%clk 00:10:31]} {[%emt 00:00:39]} Nxe7 {[%clk 00:05:07]} {[%emt
00:00:07]} 21. Ne2 {[%clk 00:07:40]} {[%emt 00:02:56]} Nd5 {[%clk 00:04:56]}
{[%emt 00:00:15]} 22. Nec3 {[%clk 00:07:35]} {[%emt 00:00:10]} Nxc3 {[%clk
00:04:31]} {[%emt 00:00:31]} 23. Rxc3 {[%clk 00:07:38]} {[%emt 00:00:02]} Rb8
{[%clk 00:04:28]} {[%emt 00:00:07]} 24. Rac1 {[%clk 00:07:23]} {[%emt
00:00:21]} Be6 {[%clk 00:04:30]} {[%emt 00:00:02]} 25. Nc5 {[%clk 00:06:35]}
{[%emt 00:00:54]} Bd5 {[%clk 00:04:31]} {[%emt 00:00:02]} 26. Nd7 {[%clk
00:06:33]} {[%emt 00:00:09]} Rbd8 {[%clk 00:04:24]} {[%emt 00:00:11]} 27. Ne5
{[%clk 00:06:37]} {[%emt 00:00:02]} Kf8 {[%clk 00:04:21]} {[%emt 00:00:07]} 28.
g3 {[%clk 00:06:38]} {[%emt 00:00:05]} Rxe5 {[%clk 00:03:54]} {[%emt 00:00:32]}
29. dxe5 {[%clk 00:06:41]} {[%emt 00:00:02]} Ke7 {[%clk 00:03:58]} 30. g4
{[%clk 00:06:14]} {[%emt 00:00:33]} Ke6 {[%clk 00:03:44]} {[%emt 00:00:19]} 31.
gxf5+ {[%clk 00:06:15]} {[%emt 00:00:05]} Kxf5 {[%clk 00:03:46]} {[%emt
00:00:02]} 32. Kh2 {[%clk 00:06:13]} {[%emt 00:00:07]} Kxe5 {[%clk 00:03:49]}
{[%emt 00:00:02]} 33. Rg1 {[%clk 00:06:08]} {[%emt 00:00:10]} g6 {[%clk
00:03:54]} 34. Rg5+ {[%clk 00:06:02]} {[%emt 00:00:11]} Kf6 {[%clk 00:03:55]}
{[%emt 00:00:02]} 35. h4 {[%clk 00:06:02]} {[%emt 00:00:07]} h6 {[%clk
00:03:22]} {[%emt 00:00:38]} 36. Rg1 {[%clk 00:06:03]} {[%emt 00:00:04]} g5
{[%clk 00:03:26]} 37. hxg5+ {[%clk 00:06:02]} {[%emt 00:00:06]} hxg5 {[%clk
00:03:30]} 38. Kg2 {[%clk 00:05:55]} {[%emt 00:00:11]} Rh8 {[%clk 00:03:27]}
{[%emt 00:00:09]} 39. a4 {[%clk 00:05:45]} {[%emt 00:00:15]} Ke5 {[%clk
00:03:19]} {[%emt 00:00:12]} 40. Rcc1 {[%clk 00:05:39]} {[%emt 00:00:12]} Bb3
{[%clk 00:03:18]} {[%emt 00:00:06]} 41. a5 {[%clk 00:05:36]} {[%emt 00:00:08]}
Ba4 {[%clk 00:03:14]} {[%emt 00:00:09]} 42. Rc5+ {[%clk 00:05:37]} {[%emt
00:00:04]} Kf6 {[%clk 00:03:13]} {[%emt 00:00:06]} 43. Rh1 {[%clk 00:05:34]}
{[%emt 00:00:08]} Rxh1 {[%clk 00:03:10]} {[%emt 00:00:08]} 44. Kxh1 {[%clk
00:05:38]} {[%emt 00:00:02]} Bb5 {[%clk 00:03:03]} {[%emt 00:00:11]} 45. Kg2
{[%clk 00:05:41]} {[%emt 00:00:02]} b6 {[%clk 00:03:01]} {[%emt 00:00:06]} 46.
Rc1 {[%clk 00:05:36]} {[%emt 00:00:10]} Ke5 {[%clk 00:02:58]} {[%emt 00:00:07]}
47. Kg3 {[%clk 00:05:40]} {[%emt 00:00:03]} Kf5 {[%clk 00:02:52]} {[%emt
00:00:11]} 48. Rh1 {[%clk 00:05:38]} {[%emt 00:00:07]} bxa5 {[%clk 00:02:46]}
{[%emt 00:00:12]} 49. bxa5 {[%clk 00:05:41]} c5 {[%clk 00:02:48]} {[%emt
00:00:03]} 50. Rh7 {[%clk 00:05:41]} {[%emt 00:00:05]} a6 {[%clk 00:02:50]}
{[%emt 00:00:04]} 51. Rc7 {[%clk 00:05:43]} {[%emt 00:00:01]} c4 {[%clk
00:02:45]} {[%emt 00:00:11]} 52. Rc5+ {[%clk 00:01:36]} {[%emt 00:04:12]} Kg6
{[%clk 00:02:43]} {[%emt 00:00:07]} 53. Kg4 {[%clk 00:01:36]} {[%emt 00:00:05]}
Bd7+ {[%clk 00:02:41]} {[%emt 00:00:06]} 54. Kg3 {[%clk 00:01:41]} {[%emt
00:00:02]} Bb5 {[%clk 00:02:45]} 55. f3 {[%clk 00:01:33]} {[%emt 00:00:13]}
exf3 {[%clk 00:02:45]} {[%emt 00:00:06]} 56. Kxf3 {[%clk 00:01:37]} Kf6 {[%clk
00:02:48]} {[%emt 00:00:02]} 57. e4 {[%clk 00:01:37]} {[%emt 00:00:05]} Kg6
{[%clk 00:02:47]} {[%emt 00:00:06]} 58. Ke3 {[%clk 00:01:33]} {[%emt 00:00:09]}
Kf6 {[%clk 00:02:48]} {[%emt 00:00:04]} 59. Rxb5 {[%clk 00:01:29]} {[%emt
00:00:09]} 1-0